bitfinex-derivatives/quotes_SOLF0:USTF0_20251126
["timestamp","ask_amount","ask_price","bid_price","bid_amount"]
[1764180049148,0.04611714,140.79,140.77,3.11173792]
[1764180053543,0.04611714,140.79,140.77,0.05173792]
[1764180053745,0.04611714,140.79,140.77,3.11173792]
[1764180058452,0.04611714,140.79,140.77,0.05173792]
[1764180059741,0.04611714,140.79,140.77,3.11173792]
[1764180060445,1.62,140.87,140.77,3.11173792]
[1764180060641,18.21704959,140.92,140.78,3.06]
[1764180060642,111.07832541,140.92,140.78,3.06]
[1764180060840,1.62,140.88,140.81,3.06]
[1764180061243,1.62,140.85,140.81,3.06]
[1764180061445,0.04774494,140.84,140.82,0.04957748]
[1764180061752,1.66774494,140.84,140.82,0.04957748]
[1764180061945,1.66774494,140.84,140.7,3.06]
[1764180061946,1.62,140.77,140.7,3.06]
[1764180062344,1.62,140.74,140.66,181.98776916]
[1764180062744,24.66,140.77,140.67,3.06]
[1764180063054,0.04578988,140.73,140.71,3.10515915]
[1764180063355,0.04955096,140.73,140.71,0.04515915]
[1764180064246,0.04955096,140.73,140.71,3.10515915]
[1764180064642,0.04955096,140.73,140.71,9.50275915]
[1764180064843,0.04955096,140.73,140.72,3.06]
[1764180066350,1.62,140.78,140.72,3.06]
[1764180066546,1.62,140.78,140.72,9.4572]
[1764180066843,13.1245451,140.82,140.72,3.06]
[1764180067044,99.4259,140.85,140.72,3.06]
[1764180067045,1.62,140.86,140.77,3.15]
[1764180067556,0.04625617,140.83,140.8,0.04966076]
[1764180068550,0.04625617,140.83,140.8,3.19966076]
[1764180069657,1.66625617,140.83,140.8,0.04966076]
[1764180070449,8.05885617,140.83,140.8,0.04966076]
[1764180070755,0.04625617,140.83,140.8,0.04966076]
[1764180073152,0.04625617,140.83,140.8,2.98966076]
[1764180073659,1.61,140.89,140.83,9.3323]
[1764180074052,1.61,140.89,140.83,2.94]
[1764180074653,1.65696478,140.87,140.85,0.05431243]
[1764180074854,1.65859463,140.87,140.85,0.04899907]
[1764180075054,1.65859463,140.87,140.79,9.3341]
[1764180075852,1.61,140.86,140.76,2.94]
[1764180076053,0.05303369,140.82,140.8,0.04945293]
[1764180076250,0.05303369,140.82,140.72,106.2464451]
[1764180076251,1.66303369,140.82,140.72,2.94]
[1764180076457,1.61,140.82,140.72,2.94]
[1764180077253,0.04736949,140.78,140.76,0.04547375]
[1764180078362,1.61,140.77,140.76,0.04547375]
[1764180078558,1.61,140.77,140.68,2.94]
[1764180078748,8.008,140.71,140.64,2.94]
[1764180079056,1.61,140.74,140.64,2.94]
[1764180079452,1.61,140.78,140.65,2.94]
[1764180079653,1.61,140.78,140.7,0.05255703]
[1764180079654,1.65592774,140.73,140.7,0.05255703]
[1764180079954,1.61,140.71,140.61,2.94]
[1764180080461,1.61,140.71,140.63,2.94]
[1764180080858,0.04785029,140.68,140.66,0.046973]
[1764180081451,1.65785029,140.68,140.66,0.046973]
[1764180081852,0.04785029,140.68,140.66,0.046973]
[1764180082757,1.61,140.76,140.66,2.986973]
[1764180082947,1.61,140.76,140.66,2.94]
[1764180083148,1.61,140.76,140.67,2.94]
[1764180083560,1.61,140.76,140.68,9.339]
[1764180083760,6.3949,140.78,140.69,2.94]
[1764180083951,26.32,140.79,140.71,2.99227676]
[1764180083952,0.05135542,140.73,140.71,2.99227676]
[1764180084154,0.05135542,140.73,140.71,9.38987676]
[1764180084155,0.04986501,140.73,140.71,9.38987676]
[1764180084359,1.66,140.83,140.74,2.94]
[1764180084764,1.66,140.83,140.75,6.3957]
[1764180085153,1.66,140.87,140.78,6.3942]
[1764180085354,1.71393614,140.84,140.81,0.05467788]
[1764180085763,1.71393614,140.84,140.74,9.336]
[1764180086071,1.66,140.84,140.74,9.336]
[1764180086462,26.32,140.84,140.75,6.3957]
[1764180086658,26.32,140.84,140.74,2.94]
[1764180086863,1.7084613,140.81,140.78,0.04952665]
[1764180088870,0.0484613,140.81,140.78,0.04952665]
[1764180089057,1.7084613,140.81,140.78,0.04952665]
[1764180089258,0.0484613,140.81,140.78,0.04952665]
[1764180090863,1.7084613,140.81,140.78,0.04952665]
[1764180091671,0.0484613,140.81,140.78,2.98952665]
[1764180091863,26.32,140.88,140.79,6.394]
[1764180092065,26.32,140.88,140.79,9.334]
[1764180092370,1.66,140.87,140.75,2.94]
[1764180092566,1.66,140.85,140.76,2.94]
[1764180092962,1.66,140.85,140.79,0.04547261]
[1764180092963,0.04603005,140.82,140.79,0.04547261]
[1764180093767,0.04603005,140.82,140.79,2.98547261]
[1764180094367,0.04603005,140.82,140.79,0.04547261]
[1764180094768,0.04603005,140.82,140.79,2.98547261]
[1764180095175,0.04603005,140.82,140.79,9.37947261]
[1764180095474,0.04603005,140.82,140.8,2.94]
[1764180095659,1.66,140.89,140.8,2.94]
[1764180096670,1.66,140.89,140.81,6.393]
[1764180096671,8.0498,140.89,140.81,6.393]
[1764180096859,0.05305026,140.84,140.82,2.98501081]
[1764180097063,8.0498,140.89,140.82,2.98501081]
[1764180097274,8.0498,140.89,140.83,2.94]
[1764180097275,0.04520181,140.84,140.83,2.94]
[1764180097462,8.0498,140.89,140.83,2.94]
[1764180097669,1.66,140.93,140.83,2.94]
[1764180097869,1.66,140.93,140.86,9.3309]
[1764180098174,8.048,140.93,140.86,2.94]
[1764180098770,0.05181007,140.91,140.88,2.99263669]
[1764180098974,24.64,140.95,140.88,2.99263669]
[1764180100169,0.04785875,140.93,140.88,2.99263669]
[1764180100764,0.04785875,140.93,140.88,9.38263669]
[1764180100972,0.04785875,140.93,140.89,2.94]
[1764180102671,1.75785875,140.93,140.88,0.05263669]
[1764180103176,8.14605875,140.93,140.88,0.05263669]
[1764180103479,8.14605875,140.93,140.88,3.03263669]
[1764180103683,1.75785875,140.93,140.88,3.03263669]
[1764180104568,8.14585875,140.93,140.88,3.03263669]
[1764180104773,1.75785875,140.93,140.88,3.03263669]
[1764180105382,0.04785875,140.93,140.88,3.03263669]
[1764180106072,0.04785875,140.93,140.9,2.98]
[1764180106266,0.04785875,140.93,140.91,6.3885]
[1764180106466,0.04785875,140.93,140.92,2.98]
[1764180109372,8.0954,140.99,140.92,2.98]
[1764180109980,1.71,140.99,140.92,2.98]
[1764180110482,1.71,140.99,140.94,0.04600196]
[1764180110682,6.7314451,141.01,140.94,3.02600196]
[1764180110984,26.33,141.02,140.94,3.02600196]
[1764180112075,1.71,141.0,140.94,3.02600196]
[1764180112280,1.71,140.98,140.94,0.04600196]
[1764180113182,6.3862,140.97,140.94,0.04600196]
[1764180113383,1.71,140.98,140.94,0.04600196]
[1764180113684,8.4414451,141.01,140.94,3.02600196]
[1764180113882,24.62,141.0,140.94,3.02600196]
[1764180114182,8.4414451,141.01,140.94,3.02600196]
[1764180115176,6.3852,140.99,140.94,3.02600196]
[1764180115372,1.71,140.98,140.94,0.04600196]
[1764180115783,1.71,141.02,140.94,3.02600196]
[1764180115986,26.33,141.01,140.94,3.02600196]
[1764180116284,26.33,141.01,140.94,2.98]
[1764180116488,1.71,141.0,140.96,0.05168683]
[1764180116689,6.3852,140.99,140.96,0.05168683]
[1764180116892,8.0952,140.99,140.96,0.05168683]
[1764180117187,1.71,141.0,140.96,0.05168683]
[1764180117779,1.71,141.0,140.96,3.03168683]
[1764180118792,1.71,141.0,140.96,0.05168683]
[1764180119484,1.71,141.0,140.96,3.03168683]
[1764180120880,8.0947,141.0,140.96,0.05168683]
[1764180121084,1.71,141.04,140.96,3.03168683]
[1764180121287,26.33,141.04,140.96,3.03168683]
[1764180121590,1.71,141.03,140.96,3.03168683]
[1764180124392,106.0170451,141.05,140.97,2.98]
[1764180124393,6.7314451,141.05,140.97,2.98]
[1764180124685,26.65003734,141.06,140.97,2.98]
[1764180124892,26.65003734,141.06,141.0,3.03210622]
[1764180125283,3.74003734,141.06,141.0,3.03210622]
[1764180125602,1.71,141.15,141.06,2.98]
[1764180125787,101.6469,141.19,141.06,2.98]
[1764180125990,6.3759,141.2,141.11,3.11]
[1764180126287,2.45,141.21,141.11,3.11]
[1764180126491,2.45,141.2,141.14,0.0472757]
[1764180126690,2.45,141.16,141.07,3.11]
[1764180126988,2.45,141.14,141.07,3.11]
[1764180127190,6.3804,141.1,141.02,3.11]
[1764180127783,8.8294,141.12,141.02,3.11]
[1764180127989,126.2781,141.16,141.06,3.11]
[1764180128191,6.3785,141.14,141.06,3.11]
[1764180129184,6.3785,141.14,141.1,3.11]
[1764180129391,2.45,141.16,141.1,3.11]
[1764180129888,101.715,141.15,141.09,0.05444732]
[1764180130094,2.5,141.18,141.09,3.16444732]
[1764180130282,27.12,141.22,141.12,0.05014368]
[1764180130485,2.5,141.22,141.13,3.11]
[1764180130688,2.5,141.22,141.16,0.05296424]
[1764180131088,101.6659,141.22,141.16,0.05296424]
[1764180131281,2.49,141.21,141.16,0.05296424]
[1764180131481,27.11,141.24,141.16,2.97296424]
[1764180131794,2.49,141.24,141.16,2.97296424]
[1764180131984,2.49,141.23,141.16,0.05296424]
[1764180132496,8.8645,141.23,141.16,0.05296424]
[1764180132698,27.13,141.23,141.16,0.05296424]
[1764180132899,5.0,141.25,141.16,2.97296424]
[1764180133120,5.0,141.25,141.19,2.97185851]
[1764180133690,5.0,141.25,141.2,2.92]
[1764180134402,0.00031822,141.25,141.21,2.92]
[1764180136697,2.9,141.23,141.19,0.05185851]
[1764180136994,102.0911,141.18,141.09,2.92]
[1764180137191,2.9,141.15,141.03,2.92]
[1764180137491,2.9,141.15,141.04,2.92]
[1764180137492,2.9,141.14,141.04,2.92]
[1764180138085,0.00217305,141.1,141.08,2.96931161]
[1764180138288,2.9,141.19,141.08,2.92]
[1764180138699,9.2763,141.19,141.08,2.92]
[1764180139000,2.9,141.18,141.08,2.92]
[1764180139195,6.3773,141.17,141.12,0.04506697]
[1764180139392,2.9,141.16,141.12,0.04506697]
[1764180139588,2.9,141.14,141.12,0.04506697]
[1764180139890,2.9,141.14,141.04,2.92]
[1764180139891,2.9,141.13,141.04,2.92]
[1764180140094,2.9,141.12,141.04,2.92]
[1764180140293,9.1795,141.12,141.04,2.92]
[1764180140696,99.264,141.08,140.99,2.92]
[1764180141201,0.0458826,141.05,141.02,0.04964986]
[1764180141406,99.2903,141.04,140.95,2.92]
[1764180141608,99.3326826,141.05,140.88,2.92]
[1764180141609,99.3181,141.0,140.88,2.92]
[1764180141808,123.9981,141.0,140.88,2.92]
[1764180142293,2.9,140.99,140.88,2.92]
[1764180142495,0.04746201,140.95,140.92,0.04559529]
[1764180142694,0.04746201,140.95,140.92,2.96559529]
[1764180142897,0.04746201,140.95,140.92,0.04559529]
[1764180143101,2.94746201,140.95,140.92,0.04559529]
[1764180143292,0.04746201,140.95,140.92,0.04559529]
[1764180143498,0.04746201,140.95,140.92,2.96559529]
[1764180144003,2.9,141.07,140.96,2.92]
[1764180144203,2.9,141.06,140.96,2.92]
[1764180144398,2.9,141.05,140.96,2.92]
[1764180144904,0.0497816,141.02,140.99,0.0532885]
[1764180145488,0.0497816,141.02,140.99,2.9732885]
[1764180146302,0.0497816,141.02,140.99,0.0532885]
[1764180146804,0.0497816,141.02,140.99,2.9732885]
[1764180147906,0.0497816,141.02,141.0,2.92]
[1764180148596,0.0497816,141.02,140.99,0.0532885]
[1764180149101,2.9497816,141.02,140.99,0.0532885]
[1764180149296,2.9,141.01,140.91,2.92]
[1764180149696,2.9,141.0,140.91,2.92]
[1764180150292,0.05208762,140.97,140.94,0.05213011]
[1764180150699,0.05208762,140.97,140.94,9.35943011]
[1764180151005,0.05208762,140.97,140.94,2.97213011]
[1764180151203,0.05208762,140.97,140.95,2.92]
[1764180151401,0.05208762,140.97,140.96,9.3065]
[1764180151706,2.9,141.04,140.96,9.3065]
[1764180151906,2.9,141.04,140.96,2.92]
[1764180152503,2.9,141.09,140.99,102.2441]
[1764180152713,0.0486422,141.05,141.03,0.0491395]
[1764180153203,0.0486422,141.05,141.03,2.9691395]
[1764180153396,0.0486422,141.05,141.03,102.2643395]
[1764180153598,0.0486422,141.05,141.03,0.0491395]
[1764180154407,2.9486422,141.05,141.03,0.0491395]
[1764180155203,0.0486422,141.05,141.03,0.0491395]
[1764180155903,2.9486422,141.05,141.03,0.0491395]
[1764180156101,2.9,141.04,140.92,102.2918]
[1764180156305,2.9,141.04,140.93,102.2856]
[1764180156306,2.9,141.03,140.93,102.2856]
[1764180156605,2.9,141.03,140.95,6.3866]
[1764180157011,2.9,140.99,140.98,0.05321101]
[1764180157408,0.05236706,141.0,140.98,0.05321101]
[1764180158012,0.05236706,141.0,140.98,9.35841101]
[1764180158611,0.05236706,141.0,140.98,2.97321101]
[1764180158814,0.05236706,141.0,140.98,0.05321101]
[1764180161705,3.02236706,141.0,140.98,0.05321101]
[1764180161907,2.97,140.98,140.9,2.95]
[1764180162110,2.97,140.98,140.9,9.3389]
[1764180162703,2.97,140.98,140.91,6.3885]
[1764180162907,0.04809281,140.96,140.93,0.05171428]
[1764180163308,3.01809281,140.96,140.93,0.05171428]
[1764180165618,34.14469281,140.96,140.93,0.05171428]
[1764180165913,2.97,140.95,140.93,0.05171428]
[1764180166113,0.04809281,140.96,140.93,0.05171428]
[1764180166416,0.04809281,140.96,140.93,6.43931428]
[1764180166617,0.04809281,140.96,140.93,0.05171428]
[1764180167122,0.04809281,140.96,140.93,3.00171428]
[1764180167418,0.04809281,140.96,140.94,6.3872]
[1764180167928,0.04809281,140.96,140.94,9.3372]
[1764180168511,0.04809281,140.96,140.95,2.95]
[1764180168917,0.04809281,140.96,140.94,6.3872]
[1764180169616,0.04809281,140.96,140.95,2.95]
[1764180170217,2.97,141.09,140.99,2.95]
[1764180170611,2.97,141.09,141.0,99.3168]
[1764180170815,2.97,141.09,141.0,102.2668]
[1764180171015,2.97,141.09,141.01,2.95]
[1764180171218,2.97,141.09,140.97,99.3387]
[1764180171219,2.97,141.05,140.97,2.95]
[1764180171610,2.97,141.05,140.97,9.3359]
[1764180172206,0.05400183,141.02,141.0,0.04631633]
[1764180174520,0.05400183,141.02,141.0,2.99631633]
[1764180175118,0.05400183,141.02,141.01,2.95]
[1764180176320,0.05400183,141.02,141.0,0.04631633]
[1764180180211,0.05400183,141.02,141.0,2.99631633]
[1764180180621,2.97,141.1,141.03,2.95]
[1764180181016,2.97,141.1,141.01,2.95]
[1764180181331,91.56669905,141.17,141.01,2.95]
[1764180181332,2.97,141.14,141.05,2.95]
[1764180181626,0.00431439,141.11,141.09,102.2023]
[1764180181824,2.97,141.18,141.11,2.95]
[1764180182329,2.97,141.18,141.06,2.95]
[1764180182519,2.97,141.17,141.06,2.95]
[1764180182721,0.04275515,141.13,141.1,0.0459425]
[1764180183138,3.01275515,141.13,141.1,0.0459425]
[1764180183425,0.04275515,141.13,141.1,0.0459425]
[1764180183624,0.00275515,141.13,141.1,102.2402425]
[1764180183825,0.00275515,141.13,141.11,2.95]
[1764180184729,0.00275515,141.13,141.12,9.3292]
[1764180184931,0.00275515,141.13,141.12,2.95]
[1764180186133,0.00275515,141.13,141.1,3.1759425]
[1764180186731,0.00275515,141.13,141.1,0.0459425]
[1764180186732,3.19275515,141.13,141.1,0.0459425]
[1764180186937,3.19,141.12,141.03,3.13]
[1764180187136,3.19,141.12,141.0,22.03008156]
[1764180187137,3.19,141.11,141.0,15.34]
[1764180187330,3.19,141.11,140.99,3.13]
[1764180187331,3.19,141.09,140.99,3.13]
[1764180188039,0.04869765,141.05,141.03,0.04957442]
[1764180188536,0.04869765,141.05,141.03,3.17957442]
[1764180188934,0.04869765,141.05,141.03,0.04957442]
[1764180189640,0.04869765,141.05,141.03,3.17957442]
[1764180190235,0.04869765,141.05,141.03,0.04957442]
[1764180190431,0.04869765,141.05,141.03,3.17957442]
[1764180190639,3.19,141.1,141.03,3.17957442]
[1764180190846,3.19,141.13,141.03,3.17957442]
[1764180191038,3.19,141.13,141.0,3.16]
[1764180191039,3.19,141.11,141.0,3.16]
[1764180191736,3.07,141.09,141.04,0.04608294]
[1764180191938,9.76008156,141.09,141.04,0.04608294]
[1764180192138,3.07,141.08,141.04,0.04608294]
[1764180192544,3.07,141.06,141.04,0.04608294]
[1764180192939,3.07,141.05,140.96,3.16]
[1764180193140,1.42,141.06,140.92,9.548]
[1764180193141,3.07,141.03,140.92,9.548]
[1764180193439,3.07,141.03,140.92,3.16]
[1764180193745,3.07,141.03,140.93,3.16]
[1764180194129,0.04539063,140.99,140.97,3.21413235]
[1764180194341,3.07,141.07,140.99,6.3848]
[1764180195245,3.07,141.07,141.02,0.05329031]
[1764180196341,3.07,141.03,140.91,102.5385]
[1764180196644,3.07,141.03,140.92,3.16]
[1764180197146,3.07,141.03,140.94,6.3872]
[1764180197343,0.05217821,141.0,140.97,0.04721846]
[1764180197543,0.05217821,141.0,140.97,3.20721846]
[1764180197743,0.05217821,141.0,140.97,0.04721846]
[1764180198047,3.12217821,141.0,140.97,0.04721846]
[1764180198742,0.05217821,141.0,140.97,0.04721846]
[1764180199540,3.12217821,141.0,140.97,0.04721846]
[1764180199734,0.05217821,141.0,140.97,3.20721846]
[1764180200139,0.05217821,141.0,140.97,0.04721846]
[1764180200140,3.12217821,141.0,140.97,0.04721846]
[1764180201238,3.07,140.99,140.9,3.16]
[1764180201437,3.07,140.97,140.9,3.16]
[1764180201641,3.07,141.01,140.91,3.16]
[1764180201949,3.07,141.04,140.95,3.16]
[1764180202353,3.07,141.04,140.97,6.3858]
[1764180202648,31.45008156,141.06,140.98,0.04715366]
[1764180202649,3.11565646,141.01,140.98,0.04715366]
[1764180205752,0.04565646,141.01,140.98,0.04715366]
[1764180206136,3.11565646,141.01,140.98,0.04715366]
[1764180207539,0.04565646,141.01,140.98,0.04715366]
[1764180207744,0.04565646,141.01,140.98,3.20715366]
[1764180208452,0.04565646,141.01,141.0,3.16]
[1764180208756,3.07,141.05,140.98,0.04715366]
[1764180208942,3.07,141.05,140.99,6.3849]
[1764180209542,0.0485196,141.03,141.01,0.04544178]
[1764180209946,3.1185196,141.03,141.01,0.04544178]
[1764180210455,0.0485196,141.03,141.01,3.20544178]
[1764180210757,0.0485196,141.03,141.01,0.04544178]
[1764180211646,3.1185196,141.03,141.01,0.04544178]
[1764180212451,0.0485196,141.03,141.01,0.04544178]
[1764180213152,3.1185196,141.03,141.01,0.04544178]
[1764180213457,3.07,141.02,141.01,0.04544178]
[1764180215260,0.0485196,141.03,141.01,0.04544178]
[1764180216954,3.1185196,141.03,141.01,0.04544178]
[1764180217764,0.0485196,141.03,141.01,3.20544178]
[1764180218962,3.1185196,141.03,141.01,0.04544178]
[1764180219571,3.07,141.02,141.01,0.04544178]
[1764180220167,0.0485196,141.03,141.01,3.20544178]
[1764180221170,3.07,141.1,141.01,3.20544178]
[1764180221464,3.07,141.1,141.02,102.2832]
[1764180221665,3.02,141.14,141.04,2.98]
[1764180221966,3.02,141.14,141.08,0.04632308]
[1764180222768,3.02,141.12,141.08,0.04632308]
[1764180222967,3.02,141.1,141.08,0.04632308]
[1764180223171,24.74,141.12,141.08,0.04632308]
[1764180223370,3.02,141.11,141.08,0.04632308]
[1764180224775,3.02,141.09,141.08,0.04632308]
[1764180224966,3.02,141.09,141.0,2.98]
[1764180225475,3.02,141.09,141.02,6.3837]
[1764180226066,3.07015178,141.07,141.04,0.04775946]
[1764180229766,3.02,141.06,141.04,0.04775946]
[1764180230976,9.402,141.06,141.04,0.04775946]
[1764180231374,3.02,141.06,141.04,0.04775946]
[1764180233575,0.05015178,141.07,141.04,0.04775946]
[1764180233780,0.05015178,141.07,141.04,3.02775946]
[1764180234172,0.05015178,141.07,141.05,2.98]
[1764180234577,0.05015178,141.07,141.04,0.04775946]
[1764180234578,3.07015178,141.07,141.04,0.04775946]
[1764180234880,0.05015178,141.07,141.04,3.02775946]
[1764180235474,0.05015178,141.07,141.06,2.98]
[1764180236377,0.05015178,141.07,141.04,0.04775946]
[1764180236582,0.05015178,141.07,141.04,3.02775946]
[1764180237877,3.07015178,141.07,141.04,0.04775946]
[1764180238080,0.05015178,141.07,141.04,0.04775946]
[1764180239887,0.05015178,141.07,141.04,3.02775946]
[1764180240088,3.07015178,141.07,141.04,0.04775946]
[1764180241382,3.02,141.06,140.97,2.98]
[1764180241694,3.02,141.05,140.97,2.98]
[1764180241889,3.02,141.05,140.98,2.98]
[1764180242083,9.50669905,141.12,141.02,102.2834]
[1764180242394,0.04747567,141.08,141.06,0.04966712]
[1764180242592,0.04747567,141.08,141.06,3.02966712]
[1764180245385,0.04747567,141.08,141.06,9.41156712]
[1764180245589,0.04747567,141.08,141.07,2.9]
[1764180246179,3.18,141.16,141.08,9.2808]
[1764180246494,3.18,141.16,141.08,2.9]
[1764180247183,0.04793078,141.13,141.11,0.04823835]
[1764180247596,2.93793078,141.13,141.11,0.04823835]
[1764180248491,0.04793078,141.13,141.11,0.04823835]
[1764180250595,0.04793078,141.13,141.11,2.94823835]
[1764180250889,0.04793078,141.13,141.11,0.04823835]
[1764180251293,0.04793078,141.13,141.11,3.09823835]
[1764180256796,0.04793078,141.13,141.11,0.04823835]
[1764180257298,0.04793078,141.13,141.11,3.09823835]
[1764180258399,3.19793078,141.13,141.11,0.04823835]
[1764180259394,3.15,141.08,141.04,3.05]
[1764180259601,3.15,141.12,141.04,3.05]
[1764180259797,3.15,141.12,141.06,3.05]
[1764180260394,0.05247084,141.1,141.08,0.05025051]
[1764180261300,3.20247084,141.1,141.08,0.05025051]
[1764180261805,6.3823,141.06,140.97,3.05]
[1764180261994,9.5323,141.06,140.97,3.05]
[1764180262390,9.5323,141.06,140.94,99.3562]
[1764180262391,3.15,141.03,140.94,3.05]
[1764180262591,3.15,140.99,140.91,3.05]
[1764180262796,3.20078693,140.99,140.96,0.05276742]
[1764180264302,3.15,140.96,140.87,6.3904]
[1764180264498,3.15,140.96,140.87,3.05]
[1764180265304,24.66,140.97,140.88,3.05]
[1764180265505,0.04999416,140.93,140.91,3.05]
[1764180265908,24.66,140.99,140.91,4.47]
[1764180266208,3.15,140.98,140.88,3.05]
[1764180266603,123.988,140.99,140.88,3.05]
[1764180266604,6.3872,140.95,140.88,3.05]
[1764180266797,6.3872,140.95,140.86,177.98187232]
[1764180266798,0.05109578,140.93,140.9,0.045427]
[1764180267103,3.15,140.92,140.9,0.045427]
[1764180268407,0.05109578,140.93,140.9,0.045427]
[1764180268795,3.20109578,140.93,140.9,0.045427]
[1764180269703,3.15,140.92,140.9,0.045427]
[1764180269904,3.15,140.91,140.9,0.045427]
[1764180270904,0.05109578,140.93,140.9,0.045427]
[1764180271211,3.20109578,140.93,140.9,0.045427]
[1764180271700,102.56849578,140.93,140.83,3.05]
[1764180272009,3.15,140.9,140.8,3.05]
[1764180272308,3.15,140.88,140.8,3.05]
[1764180273014,3.20030022,140.85,140.83,0.05195504]
[1764180273497,0.05030022,140.85,140.83,0.05195504]
[1764180273697,3.20030022,140.85,140.83,0.05195504]
[1764180275409,3.20030022,140.85,140.76,3.05]
[1764180275615,3.15,140.85,140.76,3.05]
[1764180276410,24.7,140.84,140.76,3.05]
[1764180276611,3.19578529,140.82,140.79,0.04573436]
[1764180277508,3.19578529,140.82,140.72,3.05]
[1764180277709,3.15,140.82,140.72,3.05]
[1764180278107,3.15,140.79,140.72,3.05]
[1764180278503,0.04700242,140.77,140.74,3.10267439]
[1764180278710,0.05448488,140.77,140.74,3.10134809]
[1764180278912,3.20448488,140.77,140.74,0.05134809]
[1764180279309,3.15,140.74,140.65,3.05]
[1764180279613,3.15,140.73,140.65,3.05]
[1764180280416,3.15,140.73,140.68,0.04499366]
[1764180280417,0.04566413,140.7,140.68,0.04499366]
[1764180281213,0.04566413,140.7,140.68,10.91409366]
[1764180281412,2.89,140.77,140.69,3.05]
[1764180281817,2.89,140.81,140.69,3.05]
[1764180282015,2.89,140.8,140.73,3.05]
[1764180282313,99.4266,140.85,140.73,3.05]
[1764180282613,0.04680627,140.8,140.78,3.10186234]
[1764180282820,0.0511202,140.8,140.78,3.10431321]
[1764180283020,0.0511202,140.8,140.78,9.49861321]
[1764180283321,0.0511202,140.8,140.79,3.05]
[1764180283904,2.89,140.87,140.79,4.47]
[1764180284212,2.89,140.87,140.79,9.444]
[1764180284615,2.89,140.87,140.79,3.05]
[1764180284816,0.04908143,140.84,140.82,0.05062359]
[1764180286115,11.65806041,140.92,140.82,0.05062359]
[1764180286116,2.89,140.92,140.82,3.10062359]
[1764180286416,2.89,140.92,140.82,3.05]
[1764180286614,2.89,140.92,140.83,6.392]
[1764180287123,2.89,140.88,140.86,0.05364308]
[1764180287826,2.89,140.88,140.79,6.394]
[1764180288018,2.89,140.88,140.8,3.05]
[1764180288817,0.05286264,140.85,140.83,0.04539186]
[1764180289017,2.94286264,140.85,140.83,0.04539186]
[1764180289911,0.05286264,140.85,140.83,0.04539186]
[1764180291321,0.05286264,140.85,140.83,3.09539186]
[1764180292021,2.89,140.93,140.83,3.09539186]
[1764180292211,2.89,140.92,140.83,3.05]
[1764180292612,2.89,140.92,140.85,9.4412]
[1764180293117,0.04606056,140.9,140.87,3.10044058]
[1764180293313,2.93606056,140.9,140.87,0.05044058]
[1764180298127,2.93606056,140.9,140.82,65.05]
[1764180298322,2.89,140.89,140.82,3.05]
[1764180298625,99.375,140.92,140.82,3.05]
[1764180298626,27.57,140.92,140.82,3.05]
[1764180298829,2.89,140.92,140.82,3.05]
[1764180299126,9.2784,140.92,140.84,6.3918]
[1764180299323,0.0546369,140.88,140.86,0.05312728]
[1764180300426,0.0546369,140.88,140.87,3.05]
[1764180300621,2.9446369,140.88,140.86,0.05312728]
[1764180300931,0.0546369,140.88,140.86,3.10312728]
[1764180301424,0.0546369,140.88,140.87,3.05]
[1764180301625,2.89,140.95,140.87,3.05]
[1764180302133,2.89,140.95,140.88,6.3899]
[1764180302333,2.89,140.95,140.87,3.05]
[1764180302529,2.89,140.95,140.9,0.05125189]
[1764180302734,0.05290385,140.92,140.9,0.05125189]
[1764180303236,0.05290385,140.92,140.9,3.10125189]
[1764180303827,0.05290385,140.92,140.9,9.49035189]
[1764180304236,0.05290385,140.92,140.9,3.10125189]
[1764180304441,2.94290385,140.92,140.9,0.05125189]